fUST/lending_fUST_20250227
["ID","MTS","AMOUNT","RATE_DAILY","PERIOD"]
[354738843,1740657039402,-500.0,0.00049863,120]
[354738844,1740657039414,-500.0,0.00049863,120]
[354738845,1740657039427,-804.35,0.00049863,120]
[354738846,1740657039439,-17540.08,0.00049863,7]
[354738847,1740657039451,-1070.86,0.00049863,120]
[354738848,1740657039465,-2403.88,0.00049863,120]
[354738849,1740657039477,-500.0,0.00049863,120]
[354738850,1740657039488,-3953.22,0.00049863,120]
[354738851,1740657039499,-500.0,0.00049863,120]
[354738852,1740657039510,-490.98,0.00049863,120]
[354738853,1740657039522,-500.0,0.00049863,120]
[354738854,1740657039533,-500.0,0.00049863,120]
[354738855,1740657039543,-1096.0,0.00049863,120]
[354738856,1740657039555,-560.49,0.00049863,120]
[354738857,1740657039565,-1702.99,0.00049863,120]
[354738858,1740657039576,-500.0,0.00049863,120]
[354738859,1740657039587,-556.25,0.00049863,120]
[354738860,1740657039597,-500.0,0.00049863,120]
[354738861,1740657039609,-500.0,0.00049863,120]
[354738862,1740657039622,-808.43,0.00049863,120]
[354738863,1740657039632,-3207.16,0.00049863,120]
[354738864,1740657039642,-500.0,0.00049863,120]
[354738865,1740657039652,-500.0,0.00049863,120]
[354738866,1740657039663,-500.0,0.00049863,120]
[354738867,1740657039673,-714.72,0.00049863,120]
[354738868,1740657039683,-500.0,0.00049863,120]
[354738869,1740657039694,-500.0,0.00049863,120]
[354738870,1740657039704,-500.0,0.00049863,120]
[354738872,1740657039885,-3011.45,0.00049863,6]
[354738873,1740657039902,-500.0,0.00049863,120]
[354738874,1740657039915,-245.59977257,0.00049863,120]
[354738875,1740657039925,-1008.72,0.00049863,120]
[354738876,1740657039934,-2248.94,0.00049863,120]
[354738877,1740657039944,-227.9437409,0.000499,11]
[354738878,1740657039953,-34700.3492074,0.0005,30]
[354738879,1740657039963,-228.66,0.00050126,120]
[354738880,1740657039972,-2327.9873762,0.00050136,33]
[354738881,1740657039981,-14432.42762369,0.00050136,33]
[354738882,1740657039990,-500.0,0.00050136,120]
[354738883,1740657039999,-500.0,0.00050136,120]
[354738884,1740657040008,-445.81,0.00050136,120]
[354738885,1740657040018,-500.0,0.00050136,120]
[354738886,1740657040027,-500.0,0.00050136,120]
[354738887,1740657040037,-500.0,0.00050136,120]
[354738889,1740657040046,-500.0,0.00050136,30]
[354738890,1740657040055,-500.0,0.00050136,120]
[354738891,1740657040064,-500.0,0.00050136,120]
[354738892,1740657040074,-804.35,0.00050136,120]
[354738893,1740657040083,-17540.08,0.00050136,7]
[354738894,1740657040093,-1070.86,0.00050136,120]
[354738895,1740657040103,-2403.88,0.00050136,120]
[354738896,1740657040113,-500.0,0.00050136,120]
[354738897,1740657040123,-3953.22,0.00050136,120]
[354738898,1740657040133,-500.0,0.00050136,120]
[354738899,1740657040143,-500.0,0.00050136,120]
[354738900,1740657040152,-500.0,0.00050136,120]
[354738901,1740657040162,-1096.0,0.00050136,120]
[354738902,1740657040171,-560.49,0.00050136,120]
[354738903,1740657040181,-1702.99,0.00050136,120]
[354738904,1740657040190,-500.0,0.00050136,120]
[354738905,1740657040200,-556.25,0.00050136,120]
[354738906,1740657040209,-500.0,0.00050136,120]
[354738907,1740657040219,-500.0,0.00050136,120]
[354738908,1740657040228,-808.43,0.00050136,120]
[354738909,1740657040238,-3207.16,0.00050136,120]
[354738910,1740657040247,-500.0,0.00050136,120]
[354738912,1740657040256,-500.0,0.00050136,120]
[354738914,1740657040266,-500.0,0.00050136,120]
[354738915,1740657040275,-714.72,0.00050136,120]
[354738916,1740657040284,-500.0,0.00050136,120]
[354738917,1740657040294,-500.0,0.00050136,120]
[354738918,1740657040303,-500.0,0.00050136,120]
[354738919,1740657040313,-3011.45,0.00050136,6]
[354738920,1740657040322,-500.0,0.00050136,120]
[354738921,1740657040332,-1008.72,0.00050136,120]
[354738923,1740657040343,-2248.94,0.00050136,120]
[354738924,1740657040352,-160.6788572,0.00050207,4]
[354738925,1740657040362,-500.0,0.00050409,120]
[354738926,1740657040376,-500.0,0.00050409,120]
[354738927,1740657040385,-500.0,0.00050409,120]
[354738928,1740657040394,-500.0,0.00050409,120]
[354738929,1740657040404,-500.0,0.00050409,120]
[354738930,1740657040415,-500.0,0.00050409,120]
[354738931,1740657040424,-179.83758192,0.00050409,120]
[354738932,1740657040434,-500.0,0.00050409,120]
[354738933,1740657040445,-500.0,0.00050409,120]
[354738934,1740657040455,-500.0,0.00050409,120]
[354738935,1740657040465,-500.0,0.00050409,120]
[354738936,1740657040474,-500.0,0.00050409,120]
[354738937,1740657040484,-500.0,0.00050409,120]
[354738939,1740657040495,-500.0,0.00050409,120]
[354738940,1740657040504,-352.92857801,0.0005041,120]
[354738941,1740657040513,-500.0,0.0005041,120]
[354738942,1740657040523,-500.0,0.0005041,120]
[354738943,1740657040532,-500.0,0.0005041,120]
[354738944,1740657040542,-500.0,0.0005041,120]
[354738946,1740657040551,-500.0,0.0005041,30]
[354738947,1740657040561,-500.0,0.0005041,120]
[354738948,1740657040570,-500.0,0.0005041,120]
[354738949,1740657040580,-804.35,0.0005041,120]
[354738950,1740657040590,-533.94598751,0.0005041,7]
[354738965,1740657043784,-291.12948484,0.0005031,2]
[354738966,1740657043794,-17006.13401249,0.0005041,7]
[354738967,1740657043804,-1070.86,0.0005041,120]
[354738968,1740657043813,-2403.88,0.0005041,120]
[354738969,1740657043822,-500.0,0.0005041,120]
[354738970,1740657043832,-3953.22,0.0005041,120]
[354738971,1740657043841,-500.0,0.0005041,120]
[354738972,1740657043850,-500.0,0.0005041,120]
[354738973,1740657043861,-500.0,0.0005041,120]
[354738974,1740657043871,-1096.0,0.0005041,120]
[354738975,1740657043880,-560.49,0.0005041,120]
[354738976,1740657043889,-1702.99,0.0005041,120]
[354738977,1740657043899,-500.0,0.0005041,120]
[354738978,1740657043908,-556.25,0.0005041,120]
[354738979,1740657043918,-500.0,0.0005041,120]
[354738980,1740657043927,-500.0,0.0005041,120]
[354738981,1740657043936,-808.43,0.0005041,120]
[354738982,1740657043946,-3207.16,0.0005041,120]
[354738983,1740657043955,-500.0,0.0005041,120]
[354738984,1740657043965,-500.0,0.0005041,120]
[354738985,1740657043974,-500.0,0.0005041,120]
[354738986,1740657043984,-714.72,0.0005041,120]
[354738987,1740657043993,-500.0,0.0005041,120]
[354738988,1740657044003,-500.0,0.0005041,120]
[354738989,1740657044013,-500.0,0.0005041,120]
[354738990,1740657044023,-3011.45,0.0005041,6]
[354738991,1740657044032,-500.0,0.0005041,120]
[354738992,1740657044042,-1008.72,0.0005041,120]
[354738993,1740657044051,-2248.94,0.0005041,120]
[354738994,1740657044060,-315.0,0.00050616,30]
[354738995,1740657044070,-315.0,0.00050616,30]
[354738996,1740657044079,-315.0,0.00050616,30]
[354738997,1740657044089,-315.0,0.00050616,30]
[354738998,1740657044098,-350.0,0.00050616,30]
[354738999,1740657044107,-315.0,0.00050616,30]
[354739000,1740657044118,-350.0,0.00050616,30]
[354739001,1740657044128,-315.0,0.00050616,30]
[354739002,1740657044137,-350.0,0.00050616,30]
[354739003,1740657044146,-315.0,0.00050616,30]
[354739004,1740657044156,-350.0,0.00050616,30]
[354739005,1740657044165,-315.0,0.00050616,30]
[354739006,1740657044175,-350.0,0.00050616,30]
[354739007,1740657044184,-350.0,0.00050616,30]
[354739008,1740657044193,-315.0,0.00050616,30]
[354739009,1740657044202,-350.0,0.00050616,30]
[354739010,1740657044211,-315.0,0.00050616,30]
[354739011,1740657044221,-350.0,0.00050616,30]
[354739012,1740657044230,-315.0,0.00050616,30]
[354739013,1740657044239,-350.0,0.00050616,30]
[354739014,1740657044248,-315.0,0.00050616,30]
[354739015,1740657044257,-350.0,0.00050616,30]
[354739016,1740657044266,-350.0,0.00050616,30]
[354739017,1740657044276,-350.0,0.00050616,30]
[354739018,1740657044285,-350.0,0.00050616,30]
[354739019,1740657044295,-350.0,0.00050616,30]
[354739020,1740657044304,-350.0,0.00050616,30]
[354739021,1740657044314,-350.0,0.00050616,30]
[354739022,1740657044323,-350.0,0.00050616,30]
[354739023,1740657044333,-500.0,0.00050684,120]
[354739024,1740657044342,-500.0,0.00050684,120]
[354739025,1740657044352,-385.11,0.00050684,120]
[354739026,1740657044363,-500.0,0.00050684,120]
[354739027,1740657044377,-500.0,0.00050684,30]
[354739028,1740657044386,-500.0,0.00050684,120]
[354739029,1740657044396,-500.0,0.00050684,120]
[354739030,1740657044406,-804.35,0.00050684,120]
[354739031,1740657044415,-17540.08,0.00050684,7]
[354739032,1740657044424,-1070.86,0.00050684,120]
[354739033,1740657044434,-2403.88,0.00050684,120]
[354739034,1740657044443,-500.0,0.00050684,120]
[354739035,1740657044453,-3953.22,0.00050684,120]
[354739036,1740657044464,-500.0,0.00050684,120]
[354739037,1740657044474,-500.0,0.00050684,120]
[354739038,1740657044483,-500.0,0.00050684,120]
[354739039,1740657044493,-1096.0,0.00050684,120]
[354739040,1740657044503,-560.49,0.00050684,120]
[354739041,1740657044512,-1702.99,0.00050684,120]
[354739042,1740657044522,-500.0,0.00050684,120]
[354739043,1740657044531,-556.25,0.00050684,120]
[354739044,1740657044541,-500.0,0.00050684,120]
[354739045,1740657044551,-500.0,0.00050684,120]
[354739046,1740657044560,-808.43,0.00050684,120]
[354739047,1740657044570,-3207.16,0.00050684,120]
[354739048,1740657044579,-500.0,0.00050684,120]
[354739049,1740657044589,-500.0,0.00050684,120]
[354739050,1740657044598,-500.0,0.00050684,120]
[354739051,1740657044608,-714.72,0.00050684,120]
[354739052,1740657044618,-500.0,0.00050684,120]
[354739053,1740657044627,-500.0,0.00050684,120]
[354739054,1740657044636,-500.0,0.00050684,120]
[354739055,1740657044646,-3011.45,0.00050684,6]
[354739056,1740657044656,-500.0,0.00050684,120]
[354739057,1740657044665,-1008.72,0.00050684,120]
[354739058,1740657044675,-2248.94,0.00050684,120]
[354739059,1740657044684,-315.0,0.00050787,30]
[354739060,1740657044694,-315.0,0.00050787,30]
[354739061,1740657044703,-315.0,0.00050787,30]
[354739062,1740657044713,-367.70030312,0.00050787,30]
[354739063,1740657044723,-322.67952379,0.00050787,30]
[354739064,1740657044732,-500.0,0.00050917,7]
[354739065,1740657044742,-500.0,0.00050958,120]
[354739066,1740657044752,-500.0,0.00050958,120]
[354739067,1740657044762,-500.0,0.00050958,120]
[354739068,1740657044772,-500.0,0.00050958,30]
[354739070,1740657044781,-500.0,0.00050958,120]
[354739071,1740657044791,-500.0,0.00050958,120]
[354739072,1740657044800,-804.35,0.00050958,120]
[354739073,1740657044810,-17540.08,0.00050958,7]
[354739074,1740657044820,-1070.86,0.00050958,120]
[354739075,1740657044829,-2403.88,0.00050958,120]
[354739076,1740657044840,-500.0,0.00050958,120]
[354739077,1740657044849,-3953.22,0.00050958,120]
[354739078,1740657044859,-500.0,0.00050958,120]
[354739079,1740657044869,-500.0,0.00050958,120]
[354739080,1740657044878,-500.0,0.00050958,120]
[354739081,1740657044888,-1096.0,0.00050958,120]
[354739082,1740657044897,-560.49,0.00050958,120]
[354739083,1740657044907,-1702.99,0.00050958,120]
[354739084,1740657044916,-500.0,0.00050958,120]
[354739085,1740657044926,-556.25,0.00050958,120]
[354739086,1740657044935,-500.0,0.00050958,120]
[354739087,1740657044944,-500.0,0.00050958,120]
[354739088,1740657044953,-808.43,0.00050958,120]
[354739089,1740657044963,-3207.16,0.00050958,120]
[354739090,1740657044972,-500.0,0.00050958,120]
[354739091,1740657044981,-500.0,0.00050958,120]
[354739092,1740657044991,-500.0,0.00050958,120]
[354739093,1740657045000,-714.72,0.00050958,120]
[354739094,1740657045009,-500.0,0.00050958,120]
[354739095,1740657045019,-500.0,0.00050958,120]
[354739096,1740657045028,-500.0,0.00050958,120]
[354739097,1740657045038,-3011.45,0.00050958,6]
[354739098,1740657045048,-500.0,0.00050958,120]
[354739099,1740657045058,-1008.72,0.00050958,120]
[354739100,1740657045067,-2248.94,0.00050958,120]
[354739101,1740657045076,-165.16,0.00051,30]
[354739102,1740657045086,-502.12442288,0.00051016,10]
[354739103,1740657045097,-503.61296014,0.00051045,31]
[354739104,1740657045107,-500.0,0.00051045,120]
[354739105,1740657045117,-167.9193101,0.00051045,120]
[354739106,1740657045127,-492.136748,0.00051046,120]
[354739107,1740657045136,-492.136748,0.00051046,120]
[354739108,1740657045145,-492.136748,0.00051046,120]
[354739109,1740657045154,-492.136748,0.00051046,120]
[354739110,1740657045163,-151.0,0.00051046,120]
[354739111,1740657045173,-151.0,0.00051046,120]
[354739112,1740657045182,-151.0,0.00051046,120]
[354739113,1740657045191,-333.712338,0.00051046,120]
[354739114,1740657045201,-333.712338,0.00051046,120]
[354739115,1740657045212,-3000.0,0.00051046,120]
[354739116,1740657045221,-16892.79642132,0.00051046,2]
[354739117,1740657045230,-12546.10804015,0.00051046,2]
[354739118,1740657045239,-3813.94893747,0.00051046,2]
[354739119,1740657045248,-1591.77287772,0.00051046,120]
[354739120,1740657045258,-177.33049828,0.00051046,2]
[354739121,1740657045267,-3852.06953492,0.00051046,2]
[354739122,1740657045276,-463.28136514,0.00051046,2]
[354739123,1740657045285,-14258.15963721,0.00051046,120]
[354739124,1740657045294,-38676.65255565,0.00051046,2]
[354739125,1740657045304,-187.41068002,0.00051046,2]
[354739126,1740657045313,-93244.96659045,0.00051046,2]
[354739127,1740657045322,-500000.0,0.00051046,120]
[354739128,1740657045331,-46105.09532264,0.00051046,2]
[354739133,1740657046815,-291.12948482,0.00050469,2]
[354739134,1740657046825,-333.712338,0.00051046,120]
[354739135,1740657046835,-333.712338,0.00051046,120]
[354739136,1740657046844,-151.0,0.00051046,120]
[354739137,1740657046854,-151.0,0.00051046,120]
[354739138,1740657046863,-146.54583918,0.00051046,2]
[354740563,1740658243731,-175.479118,0.00032877,2]
[354740564,1740658243742,-102.27358998,0.00049314,5]
[354740578,1740658308806,1493.61,0.00026575,7]
[354740581,1740658433012,500000.0,0.00051046,30]
[354740645,1740659442984,-450.0,0.00040873,2]
[354740656,1740659493332,150.391,0.00051044,120]
[354740660,1740660354467,10000.0,0.00027,10]
[354740661,1740660365919,10000.0,0.00027,10]
[354740662,1740660410131,-491.85009645,0.00037358,2]
[354740664,1740660488309,10000.0,0.00051045,30]
[354740671,1740660606099,2000.0,0.00051045,120]
[354740697,1740660632307,-175.4791205,0.00032877,2]
[354740698,1740660632316,-308.0644795,0.00037358,2]
[354740699,1740660632332,-2750.73254243,0.00037358,2]
[354740700,1740660632342,-424.21790288,0.00041782,120]
[354740701,1740660632351,-1550.0,0.00041883,2]
[354740702,1740660632361,-277.266648,0.00042413,2]
[354740703,1740660632370,-2233.13178702,0.00042739,2]
[354740711,1740660638131,-636.903228,0.00042739,2]
[354740721,1740660640303,-4368.12778718,0.00042739,2]
[354740722,1740660640313,-220.98789657,0.00047708,2]
[354740723,1740660640322,-220.3456163,0.000479,11]
[354740724,1740660640331,-268.0,0.00047945,2]
[354740725,1740660640340,-1656.03869995,0.00047945,10]
[354740747,1740660643206,-328.67359956,0.00047945,10]
[354740759,1740660662416,7927.0,0.00051045,30]
[354740766,1740660739524,4460.59780569,0.00051045,30]
[354740768,1740660770482,60122.23723,0.00051045,30]
[354740769,1740660823103,136467.16138,0.00051045,30]
[354740770,1740660837559,2403.2567,0.00051045,120]
[354740785,1740661832560,-277.266648,0.00039689,2]
[354740786,1740661832570,-480.7296782,0.0004245,2]
[354740787,1740661832579,-316.3709784,0.00042849,120]
[354740788,1740661832589,-160.6788572,0.00046986,4]
[354740789,1740661832600,-339.37432232,0.00047845,120]
[354740790,1740661832610,-213.00076223,0.000479,11]
[354740791,1740661832619,-550.0,0.00047944,5]
[354740792,1740661832628,-179.0,0.00047945,2]
[354740793,1740661832638,-151.0,0.00047945,120]
[354740794,1740661832647,-233.947092,0.00047945,120]
[354740795,1740661832657,-296.770762,0.00047945,120]
[354740796,1740661832667,-296.770762,0.00047945,120]
[354740797,1740661832677,-296.770762,0.00047945,120]
[354740798,1740661832687,-296.770762,0.00047945,120]
[354740799,1740661832696,-296.770762,0.00047945,120]
[354740800,1740661832707,-296.770762,0.00047945,120]
[354740801,1740661832716,-296.770762,0.00047945,120]
[354740802,1740661832726,-296.770762,0.00047945,120]
[354740803,1740661832736,-151.0,0.00047945,2]
[354740804,1740661832745,-151.0,0.00047945,2]
[354740805,1740661832755,-151.0,0.00047945,2]
[354740806,1740661832765,-151.0,0.00047945,2]
[354740807,1740661832775,-151.0,0.00047945,120]
[354740808,1740661832784,-151.0,0.00047945,120]
[354740809,1740661832793,-151.0,0.00047945,120]
[354740810,1740661832803,-151.0,0.00047945,120]
[354740811,1740661832812,-151.0,0.00047945,120]
[354740812,1740661832822,-151.0,0.00047945,120]
[354740813,1740661832831,-151.0,0.00047945,120]
[354740814,1740661832841,-151.0,0.00047945,120]
[354740815,1740661832850,-151.0,0.00047945,120]
[354740816,1740661832860,-161.141998,0.00047945,120]
[354740817,1740661832869,-151.0,0.00047945,120]
[354740818,1740661832878,-151.0,0.00047945,120]
[354740819,1740661832887,-151.0,0.00047945,120]
[354740820,1740661832897,-166.417461,0.00047945,120]
[354740821,1740661832906,-190.119974,0.00047945,120]
[354740822,1740661832915,-151.0,0.00047945,120]
[354740823,1740661832924,-151.0,0.00047945,120]
[354740824,1740661832934,-151.0,0.00047945,120]
[354740825,1740661832943,-151.0,0.00047945,120]
[354740826,1740661832952,-0.6518802,0.00047945,120]
[354740832,1740661838363,-150.3481198,0.00047945,120]
[354740833,1740661838373,-169.400278,0.00047945,120]
[354740834,1740661838383,-393.709398,0.00047945,120]
[354740835,1740661838393,-393.709398,0.00047945,120]
[354740836,1740661838403,-393.709398,0.00047945,120]
[354740837,1740661838414,-393.709398,0.00047945,120]
[354740838,1740661838424,-393.709398,0.00047945,120]
[354740839,1740661838434,-393.709398,0.00047945,120]
[354740840,1740661838443,-393.709398,0.00047945,120]
[354740842,1740661838453,-393.709398,0.00047945,120]
[354740844,1740661838462,-393.709398,0.00047945,120]
[354740846,1740661838472,-393.709398,0.00047945,120]
[354740848,1740661838481,-393.709398,0.00047945,120]
[354740850,1740661838491,-393.709398,0.00047945,120]
[354740852,1740661838501,-393.709398,0.00047945,120]
[354740853,1740661838511,-393.709398,0.00047945,120]
[354740854,1740661838520,-393.709398,0.00047945,120]
[354740855,1740661838530,-393.709398,0.00047945,120]
[354740856,1740661838539,-393.709398,0.00047945,120]
[354740857,1740661838549,-393.709398,0.00047945,120]
[354740858,1740661838558,-151.0,0.00047945,120]
[354740859,1740661838569,-151.0,0.00047945,120]
[354740860,1740661838579,-151.0,0.00047945,120]
[354740861,1740661838588,-151.0,0.00047945,120]
[354740862,1740661838597,-151.0,0.00047945,120]
[354740863,1740661838607,-151.0,0.00047945,120]
[354740864,1740661838616,-151.0,0.00047945,120]
[354740865,1740661838625,-151.0,0.00047945,120]
[354740866,1740661838634,-151.0,0.00047945,120]
[354740867,1740661838644,-151.0,0.00047945,120]
[354740868,1740661838653,-264.08247,0.00047945,120]
[354740869,1740661838664,-3000.0,0.00047945,10]
[354740870,1740661838673,-270.62146187,0.00048067,10]
[354740871,1740661838683,-158.95493951,0.00048067,10]
[354740872,1740661838692,-314.2171911,0.00048067,10]
[354740873,1740661838701,-393.709398,0.00048133,120]
[354740874,1740661838711,-393.709398,0.00048133,120]
[354740875,1740661838720,-2616.70048755,0.00048183,28]
[354740876,1740661838730,-296.770762,0.00048219,120]
[354740877,1740661838739,-296.770762,0.00048219,120]
[354740878,1740661838749,-296.770762,0.00048219,120]
[354740879,1740661838758,-296.770762,0.00048219,120]
[354740880,1740661838768,-296.770762,0.00048219,120]
[354740881,1740661838777,-296.770762,0.00048219,120]
[354740882,1740661838786,-296.770762,0.00048219,120]
[354740883,1740661838796,-296.770762,0.00048219,120]
[354740884,1740661838806,-296.770762,0.00048219,120]
[354740885,1740661838815,-296.770762,0.00048219,120]
[354740886,1740661838824,-291.268192,0.00048219,2]
[354740887,1740661838834,-6000.0,0.00048219,10]
[354740888,1740661838843,-500.0,0.00048283,7]
[354740889,1740661838853,-296.770762,0.000483,120]
[354740890,1740661838862,-296.770758,0.000483,120]
[354740891,1740661838872,-6400.48787349,0.00048493,10]
[354740892,1740661838882,-213.00076221,0.00049176,11]
[354740893,1740661838891,-2000.0,0.000492,6]
[354740894,1740661838901,-160.30984754,0.00049285,2]
[354740895,1740661838911,-1500.0,0.00049314,120]
[354740896,1740661838920,-19162.21,0.00049314,120]
[354740897,1740661838929,-18110.26691479,0.00049315,7]
[354740898,1740661838938,-500.0,0.00049315,120]
[354740899,1740661838948,-500.0,0.00049315,120]
[354740900,1740661838958,-500.0,0.00049315,120]
[354740901,1740661838970,-500.0,0.00049315,120]
[354740902,1740661838979,-557.26775005,0.00049315,120]
[354740903,1740661838988,-500.0,0.00049315,120]
[354740904,1740661838997,-500.0,0.00049315,120]
[354740905,1740661839009,-2000.0,0.00049315,120]
[354740906,1740661839018,-500.0,0.00049315,120]
[354740907,1740661839027,-500.0,0.00049315,120]
[354740908,1740661839036,-500.0,0.00049315,120]
[354740909,1740661839045,-500.0,0.00049315,120]
[354740910,1740661839055,-500.0,0.00049315,120]
[354740911,1740661839064,-500.0,0.00049315,120]
[354740912,1740661839073,-500.0,0.00049315,120]
[354740913,1740661839082,-875.0,0.00049315,2]
[354740914,1740661839091,-500.0,0.00049315,120]
[354740915,1740661839100,-500.0,0.00049315,120]
[354740916,1740661839109,-500.0,0.00049315,120]
[354740917,1740661839118,-500.0,0.00049315,120]
[354740918,1740661839128,-500.0,0.00049315,120]
[354740919,1740661839142,-500.0,0.00049315,120]
[354740920,1740661839151,-500.0,0.00049315,120]
[354740921,1740661839305,-500.0,0.00049315,120]
[354740922,1740661839315,-500.0,0.00049315,120]
[354740923,1740661839324,-500.0,0.00049315,15]
[354740924,1740661839333,-500.0,0.00049315,120]
[354740925,1740661839342,-500.0,0.00049315,120]
[354740926,1740661839351,-500.0,0.00049315,120]
[354740927,1740661839360,-500.0,0.00049315,120]
[354740928,1740661839369,-500.0,0.00049315,120]
[354740929,1740661839379,-499.16680549,0.00049315,120]
[354740930,1740661839389,-500.0,0.00049315,120]
[354740931,1740661839398,-500.0,0.00049315,120]
[354740932,1740661839407,-500.0,0.00049315,120]
[354740933,1740661839419,-500.0,0.00049315,120]
[354740934,1740661839428,-500.0,0.00049315,120]
[354740935,1740661839438,-500.0,0.00049315,120]
[354740936,1740661839447,-500.0,0.00049315,120]
[354740937,1740661839456,-500.0,0.00049315,120]
[354740938,1740661839466,-500.0,0.00049315,120]
[354740939,1740661839475,-500.0,0.00049315,120]
[354740940,1740661839484,-500.0,0.00049315,120]
[354740941,1740661839494,-500.0,0.00049315,120]
[354740942,1740661839503,-500.0,0.00049315,120]
[354740943,1740661839513,-500.0,0.00049315,120]
[354740944,1740661839523,-500.0,0.00049315,120]
[354740945,1740661839532,-500.0,0.00049315,120]
[354740946,1740661839541,-500.0,0.00049315,120]
[354740947,1740661839551,-500.0,0.00049315,120]
[354740948,1740661839560,-500.0,0.00049315,120]
[354740949,1740661839570,-500.0,0.00049315,120]
[354740950,1740661839579,-500.0,0.00049315,120]
[354740951,1740661839588,-500.0,0.00049315,120]
[354740952,1740661839597,-500.0,0.00049315,120]
[354740953,1740661839606,-500.0,0.00049315,120]
[354740954,1740661839615,-500.0,0.00049315,120]
[354740955,1740661839625,-500.0,0.00049315,120]
[354740956,1740661839635,-500.0,0.00049315,120]
[354740957,1740661839646,-500.0,0.00049315,120]
[354740958,1740661839657,-500.0,0.00049315,120]
[354740959,1740661839667,-500.0,0.00049315,120]
[354740960,1740661839676,-500.0,0.00049315,120]
[354740961,1740661839687,-500.0,0.00049315,120]
[354740962,1740661839697,-500.0,0.00049315,120]
[354740963,1740661839707,-500.0,0.00049315,120]
[354740964,1740661839716,-334.86,0.00049315,120]
[354740965,1740661839725,-339.51,0.00049315,120]
[354740966,1740661839735,-500.0,0.00049315,120]
[354740967,1740661839746,-2365.65,0.00049315,120]
[354740968,1740661839758,-500.0,0.00049315,2]
[354740969,1740661839767,-500.0,0.00049315,120]
[354740970,1740661839777,-435.04257736,0.00049315,120]
[354740971,1740661839786,-500.0,0.00049315,120]
[354740972,1740661839796,-1946.76,0.00049315,120]
[354740973,1740661839806,-500.0,0.00049315,120]
[354740974,1740661839817,-899.95,0.00049315,120]
[354740975,1740661839826,-500.0,0.00049315,120]
[354740976,1740661839835,-500.0,0.00049315,120]
[354740977,1740661839844,-944.27,0.00049315,120]
[354740978,1740661839854,-500.0,0.00049315,120]
[354740979,1740661839863,-500.0,0.00049315,120]
[354740980,1740661839872,-500.0,0.00049315,120]
[354740981,1740661839882,-500.0,0.00049315,120]
[354740982,1740661839892,-3143.02,0.00049315,120]
[354740984,1740661839901,-2425.78,0.00049315,120]
[354740986,1740661839911,-18013.26,0.00049315,7]
[354740988,1740661839921,-183.09,0.00049315,120]
[354740990,1740661839930,-500.0,0.00049315,120]
[354740992,1740661839939,-500.0,0.00049315,120]
[354740994,1740661839949,-1184.37,0.00049315,120]
[354740996,1740661839959,-500.0,0.00049315,120]
[354740998,1740661839969,-500.0,0.00049315,120]
[354741000,1740661839978,-500.0,0.00049315,120]
[354741002,1740661839988,-500.0,0.00049315,120]
[354741005,1740661839997,-937.16,0.00049315,120]
[354741007,1740661840007,-500.0,0.00049315,120]
[354741009,1740661840016,-726.94,0.00049315,120]